bitfinex-derivatives/quotes_ETHF0:USTF0_20260131
["timestamp","ask_amount","ask_price","bid_price","bid_amount"]
[1769902314792,0.20448,2448.2,2447.6,6.25105705]
[1769902314999,0.36583058,2448.2,2447.6,6.25105705]
[1769902315287,0.00488004,2448.3,2446.6,0.20461]
[1769902315288,0.16135058,2448.0,2446.6,0.20461]
[1769902315495,0.00488004,2448.3,2446.7,9.92873595]
[1769902315496,0.16135058,2447.6,2446.7,9.92873595]
[1769902315692,0.16135058,2447.6,2446.8,3.933]
[1769902316086,0.16158276,2447.4,2446.0,6.01427184]
[1769902316290,0.36608276,2448.0,2446.4,0.20463]
[1769902316497,0.2045,2448.0,2446.5,7.62245838]
[1769902316689,0.2045,2448.0,2447.0,7.62245838]
[1769902316890,0.2045,2448.0,2447.1,3.934]
[1769902317197,0.16158276,2448.0,2447.1,3.934]
[1769902317391,0.36610276,2447.7,2447.2,6.24773595]
[1769902317586,0.20448,2448.2,2447.0,3.934]
[1769902317791,0.16206149,2451.0,2448.1,8.31258384]
[1769902317991,0.16206149,2450.9,2449.0,5.8046998]
[1769902318289,0.16206149,2450.9,2449.1,11.55545838]
[1769902318489,0.16206149,2450.9,2449.1,10.18073595]
[1769902318690,0.16206149,2450.8,2449.1,6.25162884]
[1769902318892,0.16206149,2450.8,2449.2,7.613]
[1769902319089,0.16206149,2450.5,2449.2,7.613]
[1769902319289,0.16206149,2450.3,2449.1,0.00389289]
[1769902319495,0.16206149,2450.3,2449.1,6.25162884]
[1769902320491,0.16206149,2450.3,2449.1,0.00389289]
[1769902320798,0.16206149,2450.3,2449.2,6.24773595]
[1769902320988,0.16284517,2450.7,2449.2,6.24773595]
[1769902321187,0.16284517,2450.7,2449.3,7.62245838]
[1769902321391,0.16284517,2450.7,2449.4,13.87019433]
[1769902321595,0.16284517,2450.7,2449.5,3.931]
[1769902321890,0.00351986,2450.9,2449.9,7.62245838]
[1769902322297,0.16565433,2450.9,2450.0,6.24773595]
[1769902322498,0.16565433,2450.9,2449.4,2.398]
[1769902322991,0.16565433,2450.9,2449.5,6.24773595]
[1769902324292,0.16565433,2450.9,2449.6,7.62245838]
[1769902324494,0.16565433,2450.9,2449.7,7.62245838]
[1769902324692,0.00351986,2450.9,2449.5,6.24773595]
[1769902324894,0.00351986,2450.9,2449.9,7.62245838]
[1769902325098,0.00351986,2450.9,2450.2,7.62245838]
[1769902325293,0.20416,2452.1,2450.3,11.55645838]
[1769902325294,0.16118971,2451.8,2450.3,11.55645838]
[1769902325494,0.16118971,2451.8,2450.3,10.38604595]
[1769902325696,0.1609471,2452.6,2450.7,7.62245838]
[1769902325903,0.1609471,2452.3,2450.4,0.2043]
[1769902326103,0.1609471,2452.3,2450.5,7.82674838]
[1769902326303,0.16417421,2452.3,2450.6,7.62245838]
[1769902326502,0.16417421,2452.3,2450.8,7.62245838]
[1769902326702,0.16417421,2452.3,2450.7,7.62245838]
[1769902327099,0.16417421,2452.3,2450.8,7.62245838]
[1769902327299,0.16417421,2452.3,2450.7,7.62245838]
[1769902327499,0.16417421,2452.3,2450.7,7.62338983]
[1769902327699,0.16417421,2452.3,2450.8,15.23345838]
[1769902327899,0.16417421,2452.3,2450.9,7.62245838]
[1769902328096,0.16417421,2452.3,2450.9,7.6266888]
[1769902328301,0.16417421,2452.3,2451.0,10.18273595]
[1769902328898,0.20417,2452.0,2450.9,0.00423042]
[1769902329100,0.1604699,2451.9,2450.9,6.25196637]
[1769902329506,0.1604699,2451.9,2450.9,13.87442475]
[1769902330013,0.1604699,2451.9,2451.0,7.62245838]
[1769902330409,0.1604699,2451.9,2451.1,6.24773595]
[1769902330609,0.1604699,2451.9,2451.1,13.87019433]
[1769902331710,0.20414,2452.3,2451.1,6.24773595]
[1769902332510,0.20944682,2452.3,2451.1,6.24773595]
[1769902333405,0.20944682,2452.3,2451.1,6.40237051]
[1769902333705,0.35522011,2452.3,2451.1,6.40237051]
[1769902333905,0.35522011,2452.3,2451.2,7.62245838]
[1769902334306,0.35522011,2452.3,2451.3,7.62245838]
[1769902334512,0.35522011,2452.3,2451.2,13.87019433]
[1769902335009,0.35522011,2452.3,2451.3,7.62245838]
[1769902335608,0.14577329,2452.2,2451.4,13.87019433]
[1769902335909,0.14577329,2452.2,2451.4,6.24773595]
[1769902336108,0.14577329,2452.2,2451.1,0.15463456]
[1769902336309,0.20944682,2452.3,2450.9,0.00423042]
[1769902336310,0.14577329,2451.7,2450.9,0.00423042]
[1769902336700,0.14577329,2452.0,2451.1,7.62245838]
[1769902336902,0.20416,2452.1,2451.2,7.77709294]
[1769902337105,0.20416,2452.1,2451.3,7.62245838]
[1769902337310,0.20416,2452.1,2451.4,7.62245838]
[1769902337711,0.20416,2452.1,2451.4,6.24773595]
[1769902337913,0.20416,2452.1,2451.5,7.62245838]
[1769902338411,0.00530682,2452.3,2451.6,6.40237051]
[1769902338708,0.14577329,2452.5,2451.4,7.77709294]
[1769902339011,0.20413,2452.4,2451.3,4.09963456]
[1769902339313,0.20413,2452.4,2451.5,0.15463456]
[1769902339507,0.20413,2452.4,2451.7,7.62245838]
[1769902339713,0.20758859,2452.4,2451.8,7.62245838]
[1769902340006,0.14577329,2452.2,2451.6,6.24773595]
[1769902340208,0.00345859,2452.4,2451.9,7.62245838]
[1769902340509,0.00345859,2452.4,2452.0,7.62245838]
[1769902340714,0.00345859,2452.4,2451.9,7.62245838]
[1769902341110,0.00345859,2452.4,2452.0,7.62245838]
[1769902341608,0.00345859,2452.4,2452.1,7.62245838]
[1769902341808,0.00345859,2452.4,2451.9,7.62245838]
[1769902342010,0.35337188,2452.4,2451.8,7.62245838]
[1769902342213,0.35337188,2452.4,2451.9,7.62245838]
[1769902342707,0.35337188,2452.4,2452.0,7.62245838]
[1769902342913,0.18895342,2452.8,2451.6,6.24773595]
[1769902343109,0.2968,2452.9,2451.6,14.02482889]
[1769902343310,0.20413,2452.5,2451.8,0.15463456]
[1769902343807,0.2968,2452.9,2452.1,7.77709294]
[1769902343808,0.33657884,2452.8,2452.1,7.77709294]
[1769902344014,0.00411832,2452.8,2452.1,0.15463456]
[1769902344316,0.20413,2452.5,2451.7,4.10963456]
[1769902344513,0.20413,2452.4,2451.8,6.24773595]
[1769902344911,0.20413,2452.4,2452.2,7.62245838]
[1769902345410,0.14577329,2452.6,2451.4,4.11163456]
[1769902345612,0.20416,2452.1,2451.6,0.15463456]
[1769902346004,0.20416,2452.1,2451.8,6.81897608]
[1769902346412,0.14577329,2452.6,2450.9,0.00423042]
[1769902346608,0.14577329,2452.3,2451.0,0.15463456]
[1769902346818,0.20419,2451.8,2451.0,0.15463456]
[1769902347111,0.20419,2451.8,2451.2,0.15463456]
[1769902347307,0.20419,2451.7,2451.3,6.81897608]
[1769902347511,0.20419,2451.7,2451.2,0.15463456]
[1769902347711,0.20419,2451.7,2451.4,6.81897608]
[1769902348217,0.20419,2451.7,2451.5,6.81897608]
[1769902348407,0.20419,2451.7,2451.3,0.15463456]
[1769902348713,0.20419,2451.7,2451.4,6.81897608]
[1769902348915,0.20419,2451.7,2451.5,6.81897608]
[1769902349216,0.20419,2451.7,2450.9,2.31998495]
[1769902349217,0.20419,2451.7,2451.0,0.15463456]
[1769902349414,0.20419,2451.7,2451.1,0.15463456]
[1769902349610,0.20419,2451.7,2451.2,0.15463456]
[1769902350011,0.20416,2452.1,2451.3,6.40237051]
[1769902350211,0.20416,2452.1,2451.3,0.15463456]
[1769902350513,0.20414,2452.4,2451.5,0.15463456]
[1769902350719,0.20416,2452.1,2451.5,0.15463456]
[1769902350918,0.14577329,2452.7,2451.6,6.40237051]
[1769902351112,0.20417,2452.0,2451.6,6.24773595]
[1769902351313,0.20417,2452.0,2451.3,2.47038909]
[1769902351314,0.20417,2452.0,2451.3,6.43638909]
[1769902351512,0.20417,2452.0,2451.4,6.24773595]
[1769902352609,0.20413,2452.4,2451.5,0.15463456]
[1769902352810,0.20413,2452.4,2451.8,0.15463456]
[1769902353218,0.20413,2452.4,2451.9,0.15463456]
[1769902354111,0.20413,2452.4,2451.9,2.47038909]
[1769902354616,0.20413,2452.4,2451.9,0.15463456]
[1769902356823,0.20413,2452.4,2451.9,2.47038909]
[1769902357023,0.20413,2452.4,2451.9,2.31575453]
[1769902357228,0.20413,2452.4,2451.9,2.46800399]
[1769902357926,0.20413,2452.4,2451.9,0.15224946]
[1769902360931,0.20413,2452.4,2452.0,7.06558761]
[1769902361135,0.20413,2452.4,2452.0,2.46800399]
[1769902363938,0.20413,2452.4,2452.0,0.15224946]
[1769902364125,0.00351225,2452.4,2451.4,3.61673933]
[1769902364331,0.00351225,2452.4,2451.5,10.79421354]
[1769902364633,0.00351225,2452.4,2451.5,6.24773595]
[1769902365135,0.20418,2451.8,2451.5,6.40694753]
[1769902365525,0.20418,2451.8,2451.6,0.15921158]
[1769902365730,0.35425119,2452.8,2451.6,0.15921158]
[1769902365932,0.35425119,2452.8,2451.8,0.15909529]
[1769902366432,0.20414,2452.3,2452.0,0.15909529]
[1769902366633,0.35425119,2452.8,2452.0,0.15909529]
[1769902367235,0.20414,2452.3,2452.0,0.15909529]
[1769902368335,0.20414,2452.3,2452.0,6.40683124]
[1769902368636,0.20415,2452.2,2451.7,0.15868071]
[1769902369032,0.20415,2452.2,2451.8,6.40641666]
[1769902369231,0.20415,2452.2,2451.8,0.15868071]
[1769902369530,0.20416,2452.1,2451.5,0.15868071]
[1769902370128,0.20416,2452.1,2451.7,0.15831886]
[1769902371031,0.0052977,2452.7,2451.6,5.59724595]
[1769902371235,0.35425119,2452.8,2451.0,0.16096771]
[1769902371438,0.20421,2451.5,2451.2,5.59194825]
[1769902371635,0.20421,2451.5,2451.2,5.75313379]
[1769902371936,0.20421,2451.5,2451.3,0.16118554]
[1769902372934,0.20421,2451.5,2450.9,0.00423042]
[1769902373141,0.20421,2451.5,2451.0,5.59194825]
[1769902374333,0.14945317,2452.0,2451.0,5.59194825]
[1769902374334,0.20422,2451.4,2451.0,5.59194825]
[1769902374540,0.14945317,2451.8,2450.9,0.00423042]
[1769902374838,0.20423,2451.3,2450.9,5.59617867]
[1769902375541,0.20423,2451.3,2451.0,0.14680781]
[1769902375938,0.14945317,2452.1,2451.1,5.73875606]
[1769902376142,0.20421,2451.5,2451.1,5.73875606]
[1769902377836,0.20422,2451.4,2450.9,0.15103823]
[1769902378036,0.20422,2451.4,2451.0,5.59194825]
[1769902378439,0.14945317,2451.7,2450.9,0.00423042]
[1769902378744,0.14945317,2451.7,2450.9,5.12216844]
[1769902380140,0.20424,2451.2,2450.9,5.12216844]
[1769902380349,0.20424,2451.2,2450.9,5.26897625]
[1769902380742,0.14945317,2452.0,2451.0,0.14680781]
[1769902381139,0.20417,2452.0,2451.2,0.14680781]
[1769902381343,0.14945317,2452.4,2451.2,0.14680781]
[1769902381344,0.20414,2452.3,2451.3,0.14680781]
[1769902381543,0.20414,2452.3,2451.4,0.00324631]
[1769902381748,0.15934455,2452.3,2451.3,5.11793802]
[1769902381950,0.2042,2451.6,2451.3,5.11793802]
[1769902382250,0.20424,2451.2,2450.9,0.00423042]
[1769902382547,0.15934455,2451.0,2450.9,4.2e-07]
[1769902382848,0.15934455,2450.5,2449.3,3.47317783]
[1769902383150,6.07,2451.2,2449.4,1.51078482]
[1769902383449,0.20432,2450.2,2449.2,0.14680781]
[1769902383938,0.20432,2450.2,2449.3,1.65759263]
[1769902384341,0.20432,2450.2,2449.4,0.14680781]
[1769902384542,0.20434,2449.9,2449.4,0.00334666]
[1769902384849,0.20434,2449.9,2449.5,1.51078482]
[1769902385144,0.00373483,2450.2,2449.5,1.51078482]
[1769902385342,0.153188,2450.2,2449.5,1.51078482]
[1769902386147,0.20434,2449.9,2449.5,1.51078482]
[1769902388048,0.153188,2450.2,2449.5,1.51078482]
[1769902388249,0.00373483,2450.2,2449.5,1.51078482]
[1769902388652,0.15935226,2450.2,2449.5,1.51078482]
[1769902389546,0.15561743,2449.8,2449.5,1.51078482]
[1769902389749,0.15561743,2449.8,2449.4,0.00334666]
[1769902389947,0.15561743,2449.8,2449.4,0.89694294]
[1769902391846,0.35998743,2449.6,2449.4,0.42965294]
[1769902392051,0.20439,2449.3,2448.1,0.14853364]
[1769902392344,0.36001743,2449.2,2448.3,0.14853364]
[1769902392550,0.20441,2449.1,2448.3,0.14853364]
[1769902392752,0.15561743,2448.9,2448.4,0.42965294]
[1769902392949,0.20442,2448.9,2448.4,0.00358187]
[1769902393147,0.55854762,2448.9,2448.4,0.00358187]
[1769902394055,0.16109819,2450.1,2448.6,0.00742267]
[1769902394248,0.20433,2450.0,2448.7,7.697]
[1769902394553,0.16109819,2451.1,2449.1,0.2044]
[1769902394750,0.20423,2451.2,2449.3,0.20439]
[1769902394950,0.20423,2451.2,2449.5,0.20437]
[1769902395549,0.20873551,2451.2,2449.5,0.20437]
[1769902397147,0.37088018,2451.2,2449.5,3.67430152]
[1769902397351,0.00450551,2451.2,2449.6,11.15893152]
[1769902397547,0.16214467,2451.8,2449.9,3.46993152]
[1769902397747,0.52826496,2451.8,2449.9,3.46993152]
[1769902398052,0.52826496,2451.8,2450.0,3.46993152]
[1769902398551,0.53168978,2451.8,2450.0,3.46993152]
[1769902399351,0.00342482,2451.8,2450.2,3.46993152]
[1769902399544,0.00342482,2451.8,2450.4,3.46993152]
[1769902399743,0.16789564,2451.8,2450.3,3.8803]
[1769902400654,0.16447082,2451.7,2450.3,3.676]
[1769902401452,0.20760482,2451.8,2450.3,3.676]
[1769902401753,0.00342482,2451.8,2450.4,0.20429]
[1769902402644,0.00342482,2451.8,2450.3,7.14593152]
[1769902402645,0.00342482,2451.8,2450.6,3.46993152]
[1769902402843,0.20414,2452.3,2450.8,0.20426]
[1769902403354,0.36856484,2452.3,2450.8,0.20426]
[1769902403554,0.20414,2452.3,2450.8,0.20426]
[1769902403754,0.00457971,2452.3,2450.9,0.20425]
[1769902403954,0.00457971,2452.3,2451.0,0.20424]
[1769902404254,0.00457971,2452.3,2451.1,4.01]
[1769902405155,0.00457971,2452.3,2451.1,4.21424]
[1769902405753,0.00457971,2452.3,2451.1,11.77117152]
[1769902405947,0.2041,2452.8,2451.1,11.77117152]
[1769902405948,0.52194803,2453.0,2451.3,0.20422]
[1769902406256,0.36817479,2453.3,2451.4,7.762]
[1769902406451,0.16411479,2453.6,2451.9,0.20417]
[1769902406651,0.16411479,2453.6,2452.0,4.21416]
[1769902406845,0.16411479,2453.6,2452.0,4.21774609]
[1769902407051,0.53491952,2453.6,2452.0,4.21774609]
[1769902407252,0.16721305,2453.6,2452.0,4.21774609]
[1769902407954,0.16721305,2453.6,2452.0,8.30474609]
[1769902408650,0.00309826,2453.6,2452.0,8.30474609]
[1769902409050,0.00309826,2453.6,2452.1,0.20415]
[1769902409452,0.00309826,2453.6,2452.2,0.20415]
[1769902410451,0.00309826,2453.6,2452.3,0.20414]
[1769902410659,0.00309826,2453.6,2452.4,3.674]
[1769902410855,0.00309826,2453.6,2452.7,0.2041]
[1769902411252,0.16458137,2454.5,2452.4,3.674]
[1769902411458,0.16458137,2454.5,2453.0,0.20408]
[1769902411657,0.16281184,2454.8,2453.1,2.87707]
[1769902411851,0.16281184,2454.8,2453.2,0.20406]
[1769902412357,0.16281184,2455.6,2453.1,2.673]
[1769902412555,0.36668184,2455.6,2453.8,0.20401]
[1769902412756,0.36668184,2455.6,2453.9,3.673]
[1769902412951,0.16281184,2456.1,2454.3,0.20397]
[1769902413151,0.16281184,2456.1,2454.4,4.004]
[1769902413352,0.00331175,2456.1,2454.8,0.20393]
[1769902413560,0.00331175,2456.1,2454.4,4.0073661]
[1769902413561,0.00331175,2456.1,2454.9,3.87692]
[1769902413957,0.00331175,2456.1,2455.0,0.20391]
[1769902414157,0.16285413,2457.0,2455.3,0.20389]
[1769902414352,0.16285413,2457.0,2455.4,3.081]
[1769902414555,0.16285413,2457.6,2455.4,32.879]
[1769902414754,0.16285413,2457.2,2454.9,4.087]
[1769902415063,0.16683738,2457.2,2455.1,4.087]
[1769902415662,0.16683738,2457.2,2455.4,2.48801866]
[1769902415858,0.1629344,2457.1,2455.5,7.602]
[1769902416058,0.1629344,2457.1,2455.6,3.672]
[1769902416263,0.20772325,2457.2,2455.6,3.672]
[1769902416463,0.00398325,2457.2,2455.6,3.672]
[1769902416657,0.00398325,2457.2,2455.7,0.20385]
[1769902416962,0.00398325,2457.2,2455.8,7.668]
[1769902417160,0.16692642,2457.2,2455.6,3.997]
[1769902417360,0.16294317,2457.0,2455.6,3.997]
[1769902417556,0.00398325,2457.2,2454.9,2.48801866]
[1769902417557,0.36744687,2456.7,2454.9,2.48801866]
[1769902417762,0.16367687,2456.5,2454.5,0.20396]
[1769902417962,0.16367687,2456.5,2455.0,2.392]
[1769902418366,0.20379,2456.6,2455.0,2.392]
[1769902419060,0.20379,2456.6,2455.1,7.664]
[1769902419566,0.16367687,2456.9,2455.1,7.664]
[1769902419762,0.16747461,2457.2,2455.1,7.664]
[1769902419971,0.16747461,2457.2,2455.9,0.20384]
[1769902419972,0.00398325,2457.2,2455.9,0.20384]
[1769902420166,0.00398325,2457.2,2456.0,0.20383]
[1769902420361,0.00398325,2457.2,2456.1,6.284]
[1769902420558,0.16349136,2457.9,2456.1,6.48782]
[1769902421461,0.16349136,2457.9,2455.5,2.48801866]
[1769902421462,0.16349136,2457.5,2456.2,3.67]
[1769902421667,0.1635305,2457.3,2456.3,2.392]
[1769902422061,0.16352988,2457.2,2456.3,3.67]
[1769902422265,0.16352988,2456.7,2456.3,3.65748996]
[1769902422461,0.16352988,2456.4,2456.3,2.74373027]
[1769902422666,0.20379,2456.5,2455.7,0.15793538]
[1769902423568,0.20374,2457.1,2456.2,0.15793538]
[1769902423773,3.02829172,2457.8,2456.2,0.15793538]
[1769902423967,0.20374,2457.2,2456.2,0.15793538]
[1769902424170,0.20367,2458.0,2456.6,0.15793538]
[1769902424367,3.669,2459.3,2456.9,0.15793538]
[1769902424672,0.20361,2458.7,2457.0,0.15793538]
[1769902424866,0.20767569,2458.7,2457.0,0.15793538]
[1769902425272,0.20364,2458.4,2457.3,0.15793538]
[1769902425463,0.20366,2458.2,2457.3,0.15793538]
[1769902426669,0.00406569,2458.7,2457.6,0.15793538]
[1769902426871,0.00406569,2458.7,2457.8,0.15793538]
[1769902427070,0.20767569,2458.7,2457.8,0.15793538]
[1769902427268,0.00406569,2458.7,2457.8,2.90507675]
[1769902427464,0.20356,2459.3,2458.3,0.15793538]
[1769902427665,0.21312206,2460.0,2458.3,0.15793538]
[1769902427971,0.00927752,2460.4,2458.3,0.15793538]
[1769902428269,0.00927752,2459.6,2457.7,0.15793538]
[1769902428475,0.00927752,2459.2,2457.7,0.15793538]
[1769902428669,0.20364,2458.4,2457.6,0.00451744]
[1769902428973,0.20364,2458.4,2457.6,0.16245282]
[1769902429174,0.20365,2458.3,2457.6,0.00045175]
[1769902430472,0.20369,2457.8,2456.8,0.15793538]
[1769902430674,0.20369,2457.7,2456.8,0.15793538]
[1769902430865,0.00850264,2458.3,2456.8,0.15793538]
[1769902431069,0.00850264,2458.7,2456.9,0.15793538]
[1769902431277,0.20368,2457.9,2456.9,0.15793538]
[1769902431470,0.00402423,2457.9,2456.9,0.00370912]
[1769902431670,0.00402423,2457.9,2456.9,0.1616445]
[1769902433679,0.00402423,2457.9,2457.0,0.15793538]
[1769902433879,0.00402423,2457.9,2457.1,0.15793538]
[1769902434079,0.00402423,2457.9,2457.2,0.15793538]
[1769902434676,0.00402423,2457.9,2457.2,2.90507675]
[1769902434872,0.00807989,2458.8,2457.4,0.15793538]
[1769902435380,0.20366,2458.2,2457.4,0.15793538]
[1769902436078,0.20661272,2458.2,2457.4,0.15793538]
[1769902437075,0.00295272,2458.2,2457.1,0.15793538]
[1769902437271,0.00295272,2458.2,2457.2,0.15793538]
[1769902437474,0.20367,2458.0,2457.2,0.15793538]
[1769902437881,0.20367,2458.0,2457.3,2.90507675]
[1769902438088,0.20367,2458.0,2457.5,0.15793538]
[1769902438382,0.20367,2458.0,2457.0,0.15793538]
[1769902438683,0.20367,2458.0,2457.3,0.15793538]
[1769902438882,0.20367,2458.0,2457.5,0.15793538]
[1769902439284,0.20367,2458.0,2457.6,0.15793538]
[1769902439779,0.00295272,2458.2,2457.6,0.15793538]
[1769902440688,0.20366,2458.1,2457.0,0.15793538]
[1769902440880,0.20367,2458.0,2457.2,0.15793538]
[1769902441076,0.20368,2457.8,2456.9,0.1616445]
[1769902441276,0.00939249,2458.2,2456.9,0.1616445]
[1769902441481,0.20375,2457.0,2456.1,0.15793538]
[1769902441879,0.00643977,2457.6,2456.4,2.90507675]
[1769902442181,0.20372,2457.4,2456.4,0.15793538]
[1769902442374,0.20367,2458.0,2456.9,0.15793538]
[1769902442677,0.20363,2458.5,2457.2,0.15793538]
[1769902442884,0.20363,2458.5,2457.4,0.15793538]
[1769902443083,0.20363,2458.5,2457.5,0.15793538]
[1769902443280,0.20363,2458.5,2457.7,0.15793538]
[1769902443481,0.00555233,2458.9,2457.7,0.15793538]
[1769902443686,0.20367,2458.0,2457.4,0.15808798]
[1769902444286,0.20367,2458.0,2457.4,2.90522935]
[1769902444586,0.15253254,2458.2,2457.0,4.4121165]
[1769902444786,0.15253254,2458.7,2456.9,4.4121165]
[1769902444986,0.15253254,2458.7,2457.0,10.37890737]
[1769902445186,0.15253254,2458.7,2457.1,6.90897585]
[1769902445383,0.15253254,2458.7,2457.2,4.4121165]
[1769902445687,0.15253254,2458.5,2457.1,4.4121165]
[1769902445888,0.15253254,2458.5,2457.0,4.4121165]
[1769902446088,0.15253254,2458.5,2456.9,7.41393152]
[1769902446089,0.15253254,2458.5,2457.1,4.4121165]
[1769902446294,0.15253254,2458.5,2457.0,4.4121165]
[1769902446500,0.15253254,2458.5,2457.1,4.57005188]
[1769902446699,0.15253254,2458.5,2457.1,0.15793538]
[1769902446902,0.15253254,2458.5,2457.1,4.57005188]
[1769902447095,0.15253254,2458.5,2457.1,0.15793538]
[1769902447291,0.20367,2458.0,2457.2,0.15361741]
[1769902447492,0.00469272,2458.9,2456.8,3.666]
[1769902447701,0.2037,2457.7,2456.9,0.15361741]
[1769902448101,0.2037,2457.7,2457.1,2.49685935]
[1769902448301,10.18,2458.5,2457.1,2.49685935]
[1769902448502,0.2037,2457.6,2456.9,0.15361741]
[1769902448995,0.20369,2457.8,2457.2,2.65047676]
[1769902449201,0.20372,2457.4,2456.9,0.15361741]
[1769902449396,0.20373,2457.3,2456.6,4.52041006]
[1769902449592,13.846,2458.4,2456.6,4.52041006]
[1769902449593,0.20375,2457.0,2456.7,4.36679265]
[1769902449793,0.20376,2456.9,2456.4,0.1571097]
[1769902449996,0.20372,2457.4,2456.6,0.15361741]
[1769902450203,0.20372,2457.4,2456.9,0.15361741]
[1769902450403,0.20372,2457.4,2457.0,0.15361741]
[1769902450603,0.20372,2457.4,2457.0,2.65047676]
[1769902450903,0.20372,2457.4,2457.0,1.0]
[1769902450904,0.20373,2457.2,2457.0,1.0]
[1769902451106,0.20373,2457.2,2457.0,0.79633]
[1769902451903,0.00414543,2457.4,2456.4,0.16432161]
[1769902452101,0.20786543,2457.4,2456.5,0.16135586]
[1769902452299,0.00414543,2457.4,2456.5,0.16135586]
[1769902452503,0.20375,2457.0,2456.5,0.16135586]
[1769902453003,0.20375,2457.0,2456.6,0.27295548]
[1769902453500,0.20376,2456.9,2456.7,5.48e-06]
[1769902453695,0.20376,2456.9,2456.4,0.00349229]
[1769902453898,0.20376,2456.9,2456.4,0.16431412]
[1769902456198,0.20377,2456.8,2456.1,0.1609213]
[1769902456400,0.20377,2456.8,2456.1,3.86808642]
[1769902456602,0.20378,2456.6,2456.1,4.02900772]
[1769902456801,0.20378,2456.6,2456.1,0.1609213]
[1769902457201,0.20379,2456.5,2456.1,0.16438088]
[1769902457400,0.00414543,2457.4,2456.1,0.16438088]
[1769902457702,0.00414543,2457.4,2456.2,0.16106762]
[1769902458303,0.20376,2456.9,2456.2,0.16106762]
[1769902458502,0.20378,2456.7,2456.2,0.16106762]
[1769902459101,0.00414543,2457.4,2456.1,0.00345958]
[1769902459301,0.00414543,2457.4,2455.6,0.16106762]
[1769902459302,0.20381,2456.3,2455.6,0.16106762]
[1769902459507,0.20382,2456.2,2455.6,4.02915404]
[1769902459801,0.20387,2455.6,2455.1,0.15985679]
[1769902460102,0.00194506,2456.4,2455.1,3.86808642]
[1769902460301,0.20388,2455.5,2455.1,3.87288997]
[1769902460503,0.20388,2455.5,2455.1,0.00480355]
[1769902461404,0.20388,2455.4,2455.1,0.00480355]
[1769902461607,0.38045405,2455.6,2455.2,0.15985679]
[1769902461801,0.20389,2455.4,2455.1,0.00235282]
[1769902462005,0.2039,2455.3,2455.1,0.00235282]
[1769902462602,0.38045405,2455.6,2455.2,0.16082932]
[1769902462806,0.20384,2455.9,2455.3,0.16082932]
[1769902463210,0.20384,2455.9,2455.4,3.86385177]
[1769902463211,0.20385,2455.8,2455.4,3.86385177]
[1769902463411,0.20386,2455.7,2455.2,4.02468109]
[1769902463711,0.20871207,2455.7,2455.3,0.16076701]
[1769902463906,0.20382,2456.2,2455.3,0.16076701]
[1769902464115,0.20382,2456.2,2455.5,0.16076701]
[1769902464507,0.20377,2456.8,2455.7,0.16076701]
[1769902464712,0.20373,2457.2,2455.9,0.16076701]
[1769902465010,0.20375,2457.0,2455.9,0.16076701]
[1769902465313,0.20375,2457.0,2456.1,0.16076701]
[1769902465714,0.20375,2457.0,2456.3,0.1606138]
[1769902466107,0.20375,2457.0,2456.4,3.86385177]
[1769902467612,0.20375,2457.0,2456.4,4.02446557]
[1769902468510,0.00391624,2457.2,2456.4,3.5246832]
[1769902468715,0.00516768,2457.2,2456.0,0.1602036]
[1769902469116,0.00516768,2457.2,2456.1,3.3640694]
[1769902469512,0.20378,2456.6,2456.1,3.524273]
[1769902469714,0.20378,2456.6,2456.2,0.15944545]
[1769902471317,0.00391624,2457.2,2456.4,0.15944545]
[1769902471515,0.20379,2456.6,2456.4,0.15944545]
[1769902471716,0.20379,2456.6,2455.5,0.15925967]
[1769902471913,0.20379,2456.6,2455.6,0.15925967]
[1769902472314,0.00391624,2457.2,2455.8,0.15925967]
[1769902472519,0.20374,2457.1,2455.8,0.15925967]
[1769902472819,0.20374,2457.1,2456.0,0.15361741]
[1769902473413,0.20374,2457.1,2456.2,0.15361741]
[1769902473719,0.14489362,2458.4,2456.4,0.15361741]
[1769902473920,0.20368,2457.9,2456.4,0.15361741]
[1769902474117,0.20368,2457.9,2456.6,0.15361741]
[1769902474522,0.20676092,2457.9,2456.8,0.15361741]
[1769902474716,0.14489362,2457.8,2456.8,0.15361741]
[1769902474920,0.14489362,2457.8,2456.9,3.3640694]
[1769902474921,0.2037,2457.6,2456.9,3.3640694]
[1769902475123,0.2037,2457.6,2456.9,3.3685691]
[1769902475715,0.14489362,2457.3,2456.2,0.15361741]
[1769902475915,0.14489362,2457.6,2456.4,0.15361741]
[1769902476221,0.38114475,2457.9,2456.1,0.15361741]
[1769902476222,0.14489362,2457.3,2456.1,0.15361741]
[1769902476721,0.14489362,2457.3,2456.2,3.10667681]
[1769902476922,0.14489362,2457.3,2456.2,0.15812928]
[1769902477222,0.20375,2457.0,2456.3,2.9530594]
[1769902477422,0.20375,2457.0,2456.3,3.10412162]
[1769902478926,0.20375,2457.0,2456.4,0.15106222]
[1769902479427,0.20371,2457.6,2456.6,0.15106222]
[1769902479736,0.38114475,2457.9,2456.8,0.15106222]
[1769902480122,0.38114475,2457.9,2457.0,0.15106222]
[1769902480316,0.00308092,2457.9,2457.0,0.15106222]
[1769902480519,0.00308092,2457.9,2457.2,0.15106222]
[1769902480718,3.87063,2458.5,2457.2,0.15106222]
[1769902480926,0.20366,2458.1,2457.4,0.15106222]
[1769902481325,0.20366,2458.1,2457.5,3.10577537]
[1769902481624,0.20683601,2458.1,2457.5,0.15271597]
[1769902481925,0.14909428,2458.9,2457.7,0.15271597]
[1769902482126,0.14909428,2458.5,2457.4,4.02592915]
[1769902482326,0.14909428,2458.5,2457.5,2.9530594]
[1769902482725,0.20365,2458.3,2457.5,2.9530594]
[1769902483028,0.20365,2458.3,2457.6,0.10992915]
[1769902483231,0.00322471,2458.5,2457.6,0.10992915]
[1769902483430,0.00322471,2458.5,2457.7,2.9530594]
[1769902484129,0.00322471,2458.5,2457.6,0.10992915]
[1769902484324,0.00322471,2458.5,2457.8,0.10604857]
[1769902484524,0.00322471,2458.5,2457.5,3.05910797]
[1769902485320,0.20361,2458.7,2457.6,0.10604857]
[1769902485520,0.35264428,2459.4,2457.6,0.10604857]
[1769902485722,0.20357,2459.2,2457.8,0.10265959]
[1769902486231,0.20357,2459.2,2458.0,0.10265959]
[1769902486425,0.37519582,2459.5,2458.0,0.1056943]
[1769902486633,0.20353,2459.6,2458.2,0.09907832]
[1769902486932,0.20353,2459.6,2458.4,0.09907832]
[1769902487328,0.20353,2459.6,2458.6,0.09907832]
[1769902487632,0.20829636,2459.6,2458.6,0.09907832]
[1769902487822,0.20829636,2459.6,2458.8,0.09804197]
[1769902488027,0.00476636,2459.6,2458.8,0.09804197]
[1769902488222,0.14909428,2459.7,2458.9,2.9530594]